Workbook

Sheet PORTADA
WWW1: DISTRITO
WWW2: listadoentidades
A14: AVISO: PARA VER LA INFORMACIÓN, DEBE HABILITAR PREVIAMENTE LAS MACROS EN SU EQUIPO:
A15: - BOTÓN OFFICE ESQUINA SUPERIOR IZQUIERDA.
A16: -OPCIONES DE EXCEL
A17: -CENTRO DE CONFIANZA
A18: -CONFIGURACIÓN DEL CENTRO DE CONFIANZA
A19: -CONFIGURACIÓN DE MACROS
A20: -HABILITAR TODAS LAS MACROS.

Sheet CuposInversión (hidden)
A43: * Para las entidades del Grupo 1, el cupo teórico asignado no aplica.
A44: * Para las entidades del Grupo 2, el cupo de inversión sera el menor valor resultante entre el cupo teórico asignado y el limite por concentración de acuerdo con la zona de riesgo calculado sobre el total de recursos administrados por la entidad, de acuerdo con lo siguiente:
A45: Zona de riesgo | B45: Limite concentración
A46: 5 | B46: 0.27
A47: 4 | B47: 0.25
A48: 3 | B48: 0.2
A49: 2 | B49: 0.1
A50: 1 | B50: 0.00011

Sheet PAT. TEC. BANCOS
D1: ESTABLECIMIENTOS DE CREDITO
D3: Patrimonio Técnico
D6: BANCOS
C8: Código | D8: Entidad | E8: 04. Patrimonio Técnico
E10: 2025-09-01
C11: 1 | D11: Banco de Bogotá | E11: 16468496.21 | F11: =_xlfn.XLOOKUP(C11&$E$8,[1]Export!$C:$C&[1]Export!$E:$E,[1]Export!$F:$F) -> 16468496.21
C12: 2 | D12: Banco Popular | E12: 2388609.69 | F12: =_xlfn.XLOOKUP(C12&$E$8,[1]Export!$C:$C&[1]Export!$E:$E,[1]Export!$F:$F) -> 2393395.101
C13: 6 | D13: Itaú | E13: 2826190.712 | F13: =_xlfn.XLOOKUP(C13&$E$8,[1]Export!$C:$C&[1]Export!$E:$E,[1]Export!$F:$F) -> 2827205.63
C14: 7 | D14: Bancolombia | E14: 27918983.99 | F14: =_xlfn.XLOOKUP(C14&$E$8,[1]Export!$C:$C&[1]Export!$E:$E,[1]Export!$F:$F) -> 28245095.14
C15: 9 | D15: Citibank | E15: 2464118.309 | F15: =_xlfn.XLOOKUP(C15&$E$8,[1]Export!$C:$C&[1]Export!$E:$E,[1]Export!$F:$F) -> 2556230.162
C16: 12 | D16: Banco GNB Sudameris | E16: 4174169.739 | F16: =_xlfn.XLOOKUP(C16&$E$8,[1]Export!$C:$C&[1]Export!$E:$E,[1]Export!$F:$F) -> 4299869.054
C17: 13 | D17: BBVA Colombia | E17: 8067402.155 | F17: =_xlfn.XLOOKUP(C17&$E$8,[1]Export!$C:$C&[1]Export!$E:$E,[1]Export!$F:$F) -> 8140885.816
C18: 23 | D18: Banco de Occidente | E18: 5935052.885 | F18: =_xlfn.XLOOKUP(C18&$E$8,[1]Export!$C:$C&[1]Export!$E:$E,[1]Export!$F:$F) -> 6017057.028
C19: 30 | D19: Banco Caja Social S.A. | E19: 2219584.754 | F19: =_xlfn.XLOOKUP(C19&$E$8,[1]Export!$C:$C&[1]Export!$E:$E,[1]Export!$F:$F) -> 2242129.881
C20: 39 | D20: Banco Davivienda | E20: 20221464.26 | F20: =_xlfn.XLOOKUP(C20&$E$8,[1]Export!$C:$C&[1]Export!$E:$E,[1]Export!$F:$F) -> 20254225.79
C21: 42 | D21: Scotiabank Colpatria S.A. | E21: 2899367.508 | F21: =_xlfn.XLOOKUP(C21&$E$8,[1]Export!$C:$C&[1]Export!$E:$E,[1]Export!$F:$F) -> 2950808.874
C22: 43 | D22: Banagrario | E22: 3267893.714 | F22: =_xlfn.XLOOKUP(C22&$E$8,[1]Export!$C:$C&[1]Export!$E:$E,[1]Export!$F:$F) -> 3318473.087
C23: 49 | D23: AV Villas | E23: 1383058.041 | F23: =_xlfn.XLOOKUP(C23&$E$8,[1]Export!$C:$C&[1]Export!$E:$E,[1]Export!$F:$F) -> 1441540.018
C24: 51 | D24: Credifinanciera S.A. | E24: 236723.536 | F24: =_xlfn.XLOOKUP(C24&$E$8,[1]Export!$C:$C&[1]Export!$E:$E,[1]Export!$F:$F) -> 238164.61
C25: 52 | D25: Bancamía S.A. | E25: 267899.347 | F25: =_xlfn.XLOOKUP(C25&$E$8,[1]Export!$C:$C&[1]Export!$E:$E,[1]Export!$F:$F) -> 275976.882
C26: 53 | D26: Banco W S.A. | E26: 329311.563 | F26: =_xlfn.XLOOKUP(C26&$E$8,[1]Export!$C:$C&[1]Export!$E:$E,[1]Export!$F:$F) -> 332424.864
C27: 54 | D27: Bancoomeva | E27: 640267.424 | F27: =_xlfn.XLOOKUP(C27&$E$8,[1]Export!$C:$C&[1]Export!$E:$E,[1]Export!$F:$F) -> 632971.722
C28: 55 | D28: Finandina | E28: 406293.754 | F28: =_xlfn.XLOOKUP(C28&$E$8,[1]Export!$C:$C&[1]Export!$E:$E,[1]Export!$F:$F) -> 415384.384
C29: 56 | D29: Banco Falabella S.A. | E29: 879441.099 | F29: =_xlfn.XLOOKUP(C29&$E$8,[1]Export!$C:$C&[1]Export!$E:$E,[1]Export!$F:$F) -> 904755.298
C30: 57 | D30: Banco Pichincha S.A. | E30: 331147.181 | F30: =_xlfn.XLOOKUP(C30&$E$8,[1]Export!$C:$C&[1]Export!$E:$E,[1]Export!$F:$F) -> 339199.264
C31: 58 | D31: Coopcentral | E31: 195046.777 | F31: =_xlfn.XLOOKUP(C31&$E$8,[1]Export!$C:$C&[1]Export!$E:$E,[1]Export!$F:$F) -> 195424.292
C32: 59 | D32: Banco Santander | E32: 1469460.623 | F32: =_xlfn.XLOOKUP(C32&$E$8,[1]Export!$C:$C&[1]Export!$E:$E,[1]Export!$F:$F) -> 1441257.415
C33: 60 | D33: Banco Mundo Mujer S.A. | E33: 472911.136 | F33: =_xlfn.XLOOKUP(C33&$E$8,[1]Export!$C:$C&[1]Export!$E:$E,[1]Export!$F:$F) -> 485192.359
C34: 62 | D34: Mibanco S.A. | E34: 361777.09 | F34: =_xlfn.XLOOKUP(C34&$E$8,[1]Export!$C:$C&[1]Export!$E:$E,[1]Export!$F:$F) -> 369931.28
C35: 63 | D35: Banco Serfinanza S.A. | E35: 357257.926 | F35: =_xlfn.XLOOKUP(C35&$E$8,[1]Export!$C:$C&[1]Export!$E:$E,[1]Export!$F:$F) -> 357598.417
C36: 64 | D36: Banco J.P: Morgan Colombia S.A. | E36: 1169269.571 | F36: =_xlfn.XLOOKUP(C36&$E$8,[1]Export!$C:$C&[1]Export!$E:$E,[1]Export!$F:$F) -> 1244742.789
C37: 65 | D37: Lulo Bank | E37: 128921.318 | F37: =_xlfn.XLOOKUP(C37&$E$8,[1]Export!$C:$C&[1]Export!$E:$E,[1]Export!$F:$F) -> 125575.557
C38: 66 | D38: Banco BTG Pactual Colombia | E38: 853803.652 | F38: =_xlfn.XLOOKUP(C38&$E$8,[1]Export!$C:$C&[1]Export!$E:$E,[1]Export!$F:$F) -> 868866.733
C39: 67 | D39: Banco Unión | E39: 140527.381 | F39: =_xlfn.XLOOKUP(C39&$E$8,[1]Export!$C:$C&[1]Export!$E:$E,[1]Export!$F:$F) -> 141407.85
